fUSD/lending_fUSD_20251213
["ID","MTS","AMOUNT","RATE_DAILY","PERIOD"]
[398429677,1765644641719,-150.0,0.00016712,2]
[398429678,1765644641728,-150.0,0.00016712,2]
[398429679,1765644641738,-150.0,0.00016712,2]
[398429680,1765644641748,-150.0,0.00016712,2]
[398429681,1765644641757,-168.27,0.00016712,2]
[398429682,1765644641767,-168.0,0.00016737,2]
[398429683,1765644641777,-168.0,0.00016747,2]
[398429684,1765644641786,-168.0,0.00016754,2]
[398429685,1765644641795,-168.0,0.00016757,2]
[398429686,1765644641804,-179.86,0.00016782,2]
[398429687,1765644641814,-168.0,0.00016784,2]
[398429688,1765644641823,-10353.37032344,0.00016787,2]
[398429689,1765644641833,-16720.58463408,0.00016787,2]
[398429690,1765644641842,-168.0,0.00016789,2]
[398429691,1765644641852,-1187.59,0.00016808,2]
[398429692,1765644641861,-500.0,0.00016819,2]
[398429693,1765644641871,-252.0,0.00016824,2]
[398429694,1765644641881,-168.0,0.00016831,2]
[398429695,1765644641891,-212.64172486,0.00016849,2]
[398429696,1765644641900,-630.0,0.00016849,2]
[398429697,1765644641910,-150.0,0.00016849,2]
[398429698,1765644641919,-500.0,0.00016849,2]
[398429699,1765644641930,-150.0,0.00016849,2]
[398429700,1765644641939,-500.0,0.00016849,2]
[398429701,1765644641948,-500.0,0.00016849,2]
[398429702,1765644641958,-200.0,0.00016849,2]
[398429703,1765644641968,-150.0,0.00016849,2]
[398429704,1765644641977,-200.0,0.00016864,2]
[398429705,1765644641986,-152.04,0.00016873,2]
[398429706,1765644641995,-168.0,0.00016886,2]
[398429707,1765644642006,-168.0,0.00016886,2]
[398429708,1765644642016,-1371.99761478,0.000169,2]
[398429709,1765644642026,-233.05803626,0.000169,2]
[398429710,1765644642036,-1606.0,0.00016918,2]
[398429711,1765644642046,-3449.0,0.00016918,2]
[398429712,1765644642056,-1324.0,0.00016918,2]
[398429713,1765644642065,-1261.0,0.00016918,2]
[398429714,1765644642074,-642.0,0.00016918,2]
[398429715,1765644642084,-151.0,0.00016918,2]
[398429716,1765644642093,-151.0,0.00016918,2]
[398429717,1765644642101,-151.0,0.00016918,2]
[398429718,1765644642110,-151.0,0.00016918,2]
[398429719,1765644642119,-150.0,0.00016918,2]
[398429720,1765644642127,-6520.0,0.00016918,2]
[398429721,1765644642136,-151.0,0.00016918,2]
[398429722,1765644642148,-2127.563,0.00016918,2]
[398429723,1765644642158,-161.0598,0.00016918,2]
[398429724,1765644642168,-161.0598,0.00016918,2]
[398429725,1765644642178,-151.0,0.00016918,2]
[398429726,1765644642188,-161.0598,0.00016918,2]
[398429727,1765644642198,-161.0598,0.00016918,2]
[398429728,1765644642207,-2426.0,0.00016918,2]
[398429729,1765644642217,-151.0,0.00016918,2]
[398429730,1765644642228,-151.0,0.00016918,2]
[398429731,1765644642238,-195.905535,0.00016918,2]
[398429732,1765644642249,-1639.110994,0.00016918,2]
[398429733,1765644642259,-172.546878,0.00016918,2]
[398429734,1765644642268,-299.99,0.00016922,4]
[398429737,1765644642278,-9999.99,0.00016922,2]
[398429739,1765644642287,-150.99,0.00016922,2]
[398429740,1765644642296,-999.99,0.00016922,2]
[398429741,1765644642306,-150.99,0.00016922,2]
[398429742,1765644642315,-9999.99,0.00016922,2]
[398429744,1765644642324,-8085.58,0.00016922,2]
[398429745,1765644642335,-510.31,0.00016922,2]
[398429746,1765644642345,-9152.55,0.00016922,2]
[398429747,1765644642361,-3674.36,0.00016922,2]
[398429748,1765644642371,-151.0,0.00016922,2]
[398429749,1765644642380,-285.891034,0.00016922,2]
[398429750,1765644642389,-155.975564,0.00016922,2]
[398429751,1765644642399,-153.259659,0.00016922,2]
[398429752,1765644642408,-151.0,0.00016922,2]
[398429753,1765644642418,-151.0,0.00016922,2]
[398429754,1765644642427,-151.0,0.00016922,2]
[398429755,1765644642436,-278.579625,0.00016922,2]
[398429756,1765644642445,-151.0,0.00016922,2]
[398429757,1765644642455,-197.939892,0.00016922,2]
[398429758,1765644642465,-233.180508,0.00016922,2]
[398429759,1765644642475,-151.0,0.00016922,2]
[398429760,1765644642484,-151.0,0.00016922,2]
[398429762,1765644642494,-168.0,0.00016947,2]
[398429763,1765644642504,-500.0,0.00016973,2]
[398429764,1765644642514,-165.05782679,0.00016973,2]
[398429765,1765644642525,-500.0,0.00016973,2]
[398429766,1765644642534,-500.0,0.00016973,2]
[398429767,1765644642543,-501.34740605,0.00016973,2]
[398429768,1765644642553,-500.0,0.00016973,2]
[398429769,1765644642563,-500.0,0.00016973,2]
[398429770,1765644642573,-500.0,0.00016973,2]
[398429771,1765644642582,-500.26433138,0.00016973,2]
[398429772,1765644642592,-500.0,0.00016973,2]
[398429773,1765644642602,-500.69569811,0.00016973,2]
[398429774,1765644642612,-500.0,0.00016973,2]
[398429775,1765644642621,-500.0,0.00016973,2]
[398429776,1765644642631,-482.77559391,0.00016973,2]
[398429777,1765644642640,-276.1948738,0.00016973,2]
[398429778,1765644642650,-500.0,0.00016973,2]
[398429779,1765644642659,-500.60353783,0.00016973,2]
[398429780,1765644642668,-500.0,0.00016973,2]
[398429781,1765644642679,-500.6273257,0.00016973,2]
[398429782,1765644642688,-500.40431242,0.00016973,2]
[398429783,1765644642698,-500.0,0.00016973,2]
[398429784,1765644642708,-201.4427787,0.00016973,2]
[398429785,1765644642717,-165.64214933,0.00016973,2]
[398429786,1765644642727,-376.6677597,0.00016973,2]
[398429787,1765644642739,-168.44035917,0.00016973,2]
[398429788,1765644642749,-500.0,0.00016973,2]
[398429789,1765644642758,-161.89218432,0.00016973,2]
[398429790,1765644642768,-630.0,0.00016986,2]
[398429791,1765644642778,-200.0,0.00016986,2]
[398429792,1765644642787,-500.0,0.00016986,2]
[398429793,1765644642797,-200.0,0.00016986,2]
[398429794,1765644642808,-506.48269393,0.00016986,2]
[398429795,1765644642818,-500.0,0.00016986,2]
[398429796,1765644642828,-150.0,0.00016986,2]
[398429797,1765644642838,-557.17,0.00016986,2]
[398429798,1765644642848,-150.0,0.00016986,2]
[398429799,1765644642858,-267.36392203,0.00016986,2]
[398429800,1765644642867,-150.0,0.00016986,2]
[398429801,1765644642877,-233.22449763,0.00016999,2]
[398429802,1765644642886,-500.0,0.00016999,2]
[398429803,1765644642896,-500.0,0.00016999,2]
[398429804,1765644642905,-307.76658629,0.00016999,2]
[398429805,1765644642914,-727581.10185598,0.00017,2]
[398429806,1765644642925,-300.0,0.00017,2]
[398429807,1765644642934,-474631.1908629,0.00017,2]
[398429808,1765644642944,-163.39976915,0.00017,2]
[398429810,1765644642954,-5065.50956673,0.00017,2]
[398429811,1765644642963,-356099.51860219,0.00017,2]
[398429812,1765644642973,-250.0,0.00017,2]
[398429813,1765644642983,-2000.0,0.00017,2]
[398429814,1765644642992,-200.0,0.00017,2]
[398429815,1765644643002,-4222.16224,0.00017,2]
[398429816,1765644643012,-176.54962,0.00017,2]
[398429817,1765644643021,-151.0,0.00017,2]
[398429819,1765644643032,-164.890281,0.00017,2]
[398429821,1765644643042,-151.0,0.00017,2]
[398429823,1765644643051,-153.769099,0.00017,2]
[398429825,1765644643060,-255.307319,0.00017,2]
[398429827,1765644643070,-151.0,0.00017,2]
[398429829,1765644643079,-156.138441,0.00017,2]
[398429831,1765644643089,-151.0,0.00017,2]
[398429833,1765644643098,-154.899254,0.00017,2]
[398429835,1765644643107,-228.496537,0.00017,2]
[398429837,1765644643117,-151.0,0.00017,2]
[398429838,1765644643126,-151.0,0.00017,2]
[398429840,1765644643136,-222.514684,0.00017,2]
[398429841,1765644643148,-206.706963,0.00017,2]
[398429842,1765644643158,-269.028814,0.00017,2]
[398429843,1765644643167,-151.0,0.00017,2]
[398429844,1765644643176,-151.0,0.00017,2]
[398429845,1765644643187,-151.0,0.00017,2]
[398429846,1765644643196,-151.0,0.00017,2]
[398429847,1765644643206,-167.325328,0.00017,2]
[398429849,1765644643215,-151.0,0.00017,2]
[398429851,1765644643229,-151.0,0.00017,2]
[398429853,1765644643239,-151.0,0.00017,2]
[398429855,1765644643249,-151.0,0.00017,2]
[398429857,1765644643259,-151.242725,0.00017,2]
[398429858,1765644643268,-151.0,0.00017,2]
[398429860,1765644643278,-151.0,0.00017,2]
[398429861,1765644643288,-259.379688,0.00017,2]
[398429862,1765644643298,-151.0,0.00017,2]
[398429863,1765644643307,-151.0,0.00017,2]
[398429864,1765644643316,-229.176192,0.00017,2]
[398429865,1765644643326,-151.0,0.00017,2]
[398429866,1765644643336,-151.0,0.00017,2]
[398429867,1765644643346,-151.0,0.00017,2]
[398429868,1765644643356,-151.0,0.00017,2]
[398429874,1765644643366,-151.0,0.00017,2]
[398429875,1765644643601,-151.0,0.00017,2]
[398429876,1765644643611,-151.0,0.00017,2]
[398429877,1765644643621,-151.0,0.00017,2]
[398429878,1765644643630,-151.0,0.00017,2]
[398429879,1765644643640,-151.0,0.00017,2]
[398429880,1765644643650,-151.0,0.00017,2]
[398429881,1765644643659,-244.224386,0.00017,2]
[398429882,1765644643668,-151.0,0.00017,2]
[398429883,1765644643678,-151.0,0.00017,2]
[398429884,1765644643687,-151.0,0.00017,2]
[398429885,1765644643697,-151.0,0.00017,2]
[398429886,1765644643707,-151.0,0.00017,2]
[398429887,1765644643716,-151.0,0.00017,2]
[398429888,1765644643726,-151.0,0.00017,2]
[398429889,1765644643736,-151.0,0.00017,2]
[398429890,1765644643746,-151.0,0.00017,2]
[398429891,1765644643756,-151.0,0.00017,2]
[398429892,1765644643766,-151.0,0.00017,2]
[398429893,1765644643776,-154.127924,0.00017,2]
[398429894,1765644643785,-151.0,0.00017,2]
[398429895,1765644643795,-151.0,0.00017,2]
[398429896,1765644643804,-151.0,0.00017,2]
[398429897,1765644643813,-151.0,0.00017,2]
[398429898,1765644643823,-202.873028,0.00017,2]
[398429899,1765644643832,-151.0,0.00017,2]
[398429900,1765644643842,-151.0,0.00017,2]
[398429901,1765644643852,-275.761418,0.00017,2]
[398429902,1765644643862,-151.0,0.00017,2]
[398429903,1765644643871,-189.618203,0.00017,2]
[398429904,1765644643881,-151.0,0.00017,2]
[398429906,1765644643891,-151.0,0.00017,2]
[398429907,1765644643901,-151.0,0.00017,2]
[398429908,1765644643910,-151.0,0.00017,2]
[398429909,1765644643920,-151.0,0.00017,2]
[398429910,1765644643930,-151.0,0.00017,2]
[398429911,1765644643941,-151.0,0.00017,2]
[398429912,1765644643951,-151.0,0.00017,2]
[398429913,1765644643960,-156.516834,0.00017,2]
[398429914,1765644643970,-151.0,0.00017,2]
[398429915,1765644643979,-151.0,0.00017,2]
[398429916,1765644643989,-151.0,0.00017,2]
[398429917,1765644643998,-151.0,0.00017,2]
[398429918,1765644644008,-151.0,0.00017,2]
[398429919,1765644644017,-262.582122,0.00017,2]
[398429920,1765644644027,-151.0,0.00017,2]
[398429921,1765644644037,-151.0,0.00017,2]
[398429922,1765644644047,-165.041741,0.00017,2]
[398429923,1765644644057,-200.22465506,0.00017,2]
[398429924,1765644644066,-151.0,0.00017,2]
[398429925,1765644644076,-151.0,0.00017,2]
[398429926,1765644644085,-161.0598,0.00017,2]
[398429927,1765644644096,-161.0598,0.00017,2]
[398429928,1765644644106,-161.0598,0.00017,2]
[398429929,1765644644117,-161.0598,0.00017,2]
[398429930,1765644644133,-161.0598,0.00017,2]
[398429931,1765644644145,-161.0598,0.00017,2]
[398429932,1765644644158,-157.109023,0.00017,2]
[398429933,1765644644169,-161.0598,0.00017,2]
[398429934,1765644644179,-161.0598,0.00017,2]
[398429935,1765644644189,-161.0598,0.00017,2]
[398429936,1765644644199,-161.0598,0.00017,2]
[398429937,1765644644210,-161.0598,0.00017,2]
[398429938,1765644644220,-161.059808,0.00017,2]
[398429939,1765644644230,-151.0,0.00017,2]
[398429940,1765644644242,-151.33043,0.00017,2]
[398429941,1765644644253,-151.0,0.00017,2]
[398429942,1765644644263,-151.0,0.00017,2]
[398429943,1765644644274,-151.0,0.00017,2]
[398429944,1765644644284,-1639.110994,0.00017,2]
[398429945,1765644644295,-10353.37032344,0.0001701,2]
[398429946,1765644644305,-16720.58463408,0.0001701,2]
[398429947,1765644644315,-296.0,0.00017022,2]
[398429948,1765644644325,-481.04173315,0.00017048,2]
[398429949,1765644644335,-1371.99761475,0.00017067,2]
[398429950,1765644644345,-1187.59,0.00017082,2]
[398429951,1765644644355,-500.0,0.00017093,2]
[398429952,1765644644364,-510.0,0.00017104,2]
[398429953,1765644644374,-630.0,0.00017123,2]
[398429954,1765644644384,-500.0,0.00017123,2]
[398429955,1765644644394,-418.0,0.00017125,2]
[398429956,1765644644404,-168.0,0.00017133,2]
[398429957,1765644644413,-1204.0,0.00017168,2]
[398429958,1765644644423,-200.0,0.0001717,2]
[398429959,1765644644434,-166.66,0.00017179,2]
[398429960,1765644644444,-10353.37032344,0.00017232,2]
[398429961,1765644644454,-16720.58463408,0.00017232,2]
[398429962,1765644644463,-1371.99761475,0.00017233,2]
[398429963,1765644644473,-1000.0,0.0001725,2]
[398429964,1765644644483,-630.0,0.0001726,2]
[398429965,1765644644497,-300.0,0.0001726,2]
[398429966,1765644644508,-557.17,0.0001726,2]
[398429967,1765644644519,-166.42,0.00017292,2]
[398429968,1765644644529,-151.0,0.00017304,2]
[398429969,1765644644540,-151.0,0.00017304,2]
[398429970,1765644644550,-151.0,0.00017304,2]
[398429971,1765644644560,-151.0,0.00017304,2]
[398429972,1765644644569,-151.0,0.00017304,2]
[398429973,1765644644579,-6660.0281044,0.00017304,2]
[398429974,1765644644589,-5000.0,0.00017304,2]
[398429975,1765644644599,-5000.0,0.00017304,2]
[398429976,1765644644609,-5000.0,0.00017304,2]
[398429977,1765644644619,-5000.0,0.00017304,2]
[398429978,1765644644629,-200.0,0.00017342,2]
[398429979,1765644644639,-1187.59,0.00017356,2]
[398429980,1765644644649,-500.0,0.00017367,2]
[398429981,1765644644658,-420.0,0.00017381,2]
[398429982,1765644644668,-630.0,0.00017397,2]
[398429983,1765644644679,-1371.99761475,0.000174,2]
[398429984,1765644644694,-233.05803626,0.000174,2]
[398429985,1765644644704,-311.1,0.00017405,2]
[398429986,1765644644714,-10353.37032344,0.00017455,2]
[398429987,1765644644724,-16720.58463408,0.00017455,2]
[398429988,1765644644734,-1680.0,0.00017469,2]
[398429989,1765644644744,-2500.0,0.00017486,2]
[398429990,1765644644754,-2500.0,0.00017486,2]
[398429991,1765644644764,-2500.0,0.00017486,2]
[398429992,1765644644773,-2500.0,0.00017486,2]
[398429993,1765644644783,-250.0,0.00017486,2]
[398429994,1765644644793,-195.0,0.00017486,2]
[398429995,1765644644803,-2500.0,0.00017486,2]
[398429996,1765644644812,-300.0,0.00017486,2]
[398429997,1765644644822,-300.0,0.00017486,2]
[398429998,1765644644832,-300.0,0.00017486,2]
[398429999,1765644644842,-193.0,0.00017486,2]
[398430000,1765644644852,-151.09704785,0.00017486,2]
[398430001,1765644644862,-287.67304415,0.00017487,2]
[398430002,1765644644872,-250.0,0.00017487,2]
[398430003,1765644644886,-300.0,0.00017487,2]
[398430004,1765644644896,-300.0,0.00017487,2]
[398430005,1765644644906,-151.0,0.00017488,2]
[398430006,1765644644916,-235.36094,0.00017488,2]
[398430007,1765644644926,-151.0,0.00017488,2]
[398430008,1765644644936,-151.0,0.00017501,2]
[398430009,1765644644946,-1359.03,0.00017502,2]
[398430010,1765644644956,-300.0,0.00017509,2]
[398430011,1765644644966,-195.0,0.00017509,2]
[398430012,1765644644976,-200.0,0.00017515,2]
[398430013,1765644644986,-1000.0,0.00017521,2]
[398430014,1765644644996,-1000.0,0.00017521,2]
[398430015,1765644645006,-1000.0,0.00017521,2]
[398430016,1765644645016,-630.0,0.00017534,2]
[398430017,1765644645026,-557.17,0.00017534,2]
[398430018,1765644645037,-1371.99761475,0.00017567,2]
[398430019,1765644645047,-1187.59,0.0001763,2]
[398430020,1765644645057,-500.0,0.00017641,2]
[398430021,1765644645067,-500.0,0.0001767,2]
[398430022,1765644645078,-630.0,0.00017671,2]
[398430023,1765644645088,-10353.37032344,0.00017677,2]
[398430024,1765644645098,-16720.58463408,0.00017677,2]
[398430025,1765644645108,-1460.36,0.00017682,2]
[398430026,1765644645118,-200.0,0.0001769,2]
[398430027,1765644645128,-166.66,0.00017711,2]
[398430028,1765644645138,-152.04,0.00017716,2]
[398430029,1765644645151,-1371.99761475,0.00017733,2]
[398430030,1765644645160,-10000.0,0.00017747,2]
[398430031,1765644645170,-1359.03,0.00017776,2]
[398430032,1765644645181,-630.0,0.00017808,2]
[398430033,1765644645192,-557.17,0.00017808,2]
[398430034,1765644645202,-500.0,0.00017808,2]
[398430035,1765644645213,-150.0,0.00017824,2]
[398430036,1765644645223,-25000.0,0.0001783,3]
[398430037,1765644645238,-25000.0,0.00017838,3]
[398430038,1765644645248,-481.04173315,0.0001784,3]
[398430039,1765644645259,-25000.0,0.00017847,3]
[398430040,1765644645271,-25000.0,0.00017856,3]
[398430041,1765644645281,-481.04173315,0.0001786,3]
[398430042,1765644645292,-5007.0,0.00017863,2]
[398430043,1765644645302,-25000.0,0.00017865,3]
[398430044,1765644645312,-25000.0,0.00017874,3]
[398430046,1765644645324,-25000.0,0.00017874,3]
[398430047,1765644645335,-25000.0,0.00017882,3]
[398430048,1765644645345,-25000.0,0.00017882,3]
[398430049,1765644645355,-25000.0,0.00017891,3]
[398430050,1765644645364,-500.0,0.00017899,2]
[398430051,1765644645374,-155.83,0.00017899,2]
[398430052,1765644645384,-625.51479315,0.000179,2]
[398430053,1765644645393,-25000.0,0.000179,3]
[398430054,1765644645403,-25000.0,0.000179,3]
[398430055,1765644645413,-481.04173315,0.000179,3]
[398430056,1765644645422,-1371.99761475,0.000179,2]
[398430057,1765644645431,-233.05803626,0.000179,2]
[398430058,1765644645441,-10353.37032344,0.000179,2]
[398430059,1765644645451,-8545.83896299,0.000179,2]
[398430060,1765644645460,-16720.58463408,0.000179,2]
[398430061,1765644645470,-347.25268631,0.000179,3]
[398430062,1765644645479,-1187.59,0.00017904,2]
[398430063,1765644645488,-500.0,0.00017915,2]
[398430064,1765644645498,-630.0,0.00017945,2]
[398430065,1765644645507,-500.0,0.00017945,2]
[398430066,1765644645517,-303.81625316,0.00017952,2]
[398430067,1765644645526,-311.66,0.00017961,2]
[398430068,1765644645536,-500.0,0.00017973,2]
[398430069,1765644645546,-566.62084446,0.00017973,2]
[398430070,1765644645555,-500.0,0.00017973,2]
[398430071,1765644645565,-500.0,0.00017973,2]
[398430072,1765644645575,-500.0,0.00017973,2]
[398430073,1765644645584,-500.0,0.00017973,2]
[398430074,1765644645593,-500.0,0.00017973,2]
[398430075,1765644645605,-500.0,0.00017973,2]
[398430076,1765644645614,-500.0,0.00017973,2]
[398430077,1765644645624,-500.0,0.00017973,2]
[398430078,1765644645633,-330.25327919,0.00017973,2]
[398430079,1765644645643,-567.32208643,0.00017973,2]
[398430080,1765644645653,-500.0,0.00017973,2]
[398430081,1765644645664,-500.0,0.00017973,2]
[398430082,1765644645675,-500.0,0.00017973,2]
[398430083,1765644645686,-500.0,0.00017973,2]
[398430084,1765644645696,-500.0,0.00017973,2]
[398430085,1765644645706,-500.0,0.00017973,2]
[398430086,1765644645715,-500.0,0.00017973,2]
[398430087,1765644645725,-500.0,0.00017973,2]
[398430088,1765644645734,-500.0,0.00017973,2]
[398430089,1765644645743,-500.0,0.00017973,2]
[398430090,1765644645753,-500.0,0.00017973,2]
[398430091,1765644645762,-500.0,0.00017973,2]
[398430092,1765644645772,-165.28083173,0.00017973,2]
[398430093,1765644645782,-500.0,0.00017973,2]
[398430095,1765644645791,-500.0,0.00017973,2]
[398430096,1765644645801,-500.0,0.00017973,2]
[398430098,1765644645810,-500.0,0.00017973,2]
[398430100,1765644645820,-500.0,0.00017973,2]
[398430103,1765644645829,-500.0,0.00017973,2]
[398430105,1765644645839,-500.0,0.00017973,2]
[398430107,1765644645849,-820.0,0.0001799,2]
[398430109,1765644645858,-590.79771498,0.0001799,2]
[398430111,1765644645868,-590.79771498,0.0001799,2]
[398430113,1765644645877,-150.0,0.00017999,2]
[398430115,1765644645886,-500.0,0.00017999,2]
[398430117,1765644645895,-500.0,0.00017999,2]
[398430119,1765644645904,-500.0,0.00017999,2]
[398430122,1765644645913,-500.0,0.00017999,2]
[398430125,1765644645923,-500.0,0.00017999,2]
[398430127,1765644645932,-500.0,0.00017999,2]
[398430129,1765644645941,-500.0,0.00017999,2]
[398430131,1765644645950,-500.0,0.00017999,2]
[398430133,1765644645959,-500.0,0.00017999,2]
[398430135,1765644645971,-500.0,0.00017999,2]
[398430137,1765644645980,-500.0,0.00017999,2]
[398430139,1765644645989,-472.0717495,0.00017999,2]
[398430141,1765644645998,-148469.3701156,0.00018,2]
[398430263,1765644647157,-777.20096427,0.00018,2]
[398430266,1765644647169,-615.739581,0.00018,2]
[398430269,1765644647187,-922.64,0.00017,2]
[398430281,1765644647304,-253.0,0.00016207,2]
[398430283,1765644647314,-674.66,0.00016438,2]
[398430286,1765644647326,-251.61884038,0.00016438,2]
[398430288,1765644647339,-712.83215362,0.00016438,2]
[398430290,1765644647349,-1639.110994,0.00016918,2]
[398430292,1765644647359,-716.470994,0.00017,2]
[398430294,1765644647368,-1639.110994,0.00017,2]
[398430296,1765644647378,-1639.110994,0.00017,2]
[398430298,1765644647388,-1639.110994,0.00017,2]
[398430300,1765644647397,-94459.42942906,0.00018,2]
[398430303,1765644647409,-910.49,0.00018,2]
[398430305,1765644647421,-4035.19815038,0.00018,2]
[398430307,1765644647433,-787400.06927263,0.00018,2]
[398430310,1765644647444,-253.59792559,0.00018,2]
[398430324,1765644647595,-278.94,0.00016438,2]
[398430338,1765644647717,-1360.170994,0.00016438,2]
[398430340,1765644647727,-1639.110994,0.00016438,2]
[398430342,1765644647736,-1639.110994,0.00016918,2]
[398430344,1765644647746,-1639.110994,0.00016918,2]
[398430347,1765644647757,-1639.110994,0.00017,2]
[398430348,1765644647766,-1639.110994,0.00017,2]
[398430350,1765644647777,-1639.110994,0.00017,2]
[398430353,1765644647787,-1639.110994,0.00017,2]
[398430355,1765644647796,-1639.110994,0.00017,2]
[398430357,1765644647806,-1639.110994,0.00017,2]
[398430359,1765644647816,-1639.111,0.00017,2]
[398430361,1765644647825,-33852.73031919,0.00018,2]
[398430363,1765644647841,-66862.7004408,0.00018,2]
[398430366,1765644647852,-6498.8924,0.00018,2]
[398430368,1765644647864,-11654.81829932,0.00018,2]
[398430423,1765644767397,250.0,0.00015085,2]
[398430425,1765645213780,-300.0,0.00015885,2]
[398430426,1765645213836,-300.0,0.00015885,2]
[398430427,1765645213891,-1200.0,0.00015885,2]
[398430428,1765645224917,512.6,0.00013699,2]
[398430430,1765645326417,200.0,0.00015878,2]
[398430431,1765645326452,200.0,0.00015878,2]
[398430432,1765645328977,500.0,0.00015878,2]
[398430433,1765645368762,-650.0,0.00015886,2]
[398430435,1765645502736,1200.0,0.00015886,2]
[398430437,1765645508301,250.0,7.945e-05,2]
[398430451,1765645801327,1200.0,0.00015886,2]
[398430467,1765645831645,-250.0,0.00015886,2]
[398430468,1765645831655,-195.0,0.00015886,2]
[398430469,1765645831664,-250.0,0.00015886,2]
[398430470,1765645831673,-162.11966442,0.00015887,2]
[398430471,1765645831750,-292.58934262,0.00015887,2]
[398430472,1765645831807,-6855.27059296,0.00015887,2]
[398430473,1765645831817,-341.34360172,0.000159,2]
[398430474,1765645831826,-500.0,0.00015986,2]
[398430475,1765645831836,-300.0,0.00016139,2]
[398430476,1765645831846,-1200.0,0.0001614,2]
[398430477,1765645831856,-500.0,0.00016141,2]
[398430478,1765645831866,-641.1096514,0.00016141,2]
[398430479,1765645831876,-500.0,0.00016141,2]
[398430480,1765645831885,-500.0,0.00016141,2]
[398430481,1765645831895,-150.0,0.000162,2]
[398430482,1765645831905,-150.0,0.000162,2]
[398430483,1765645831914,-150.0,0.000162,2]
[398430484,1765645831924,-150.0,0.000162,2]
[398430486,1765645831935,-150.0,0.000162,2]
[398430487,1765645831945,-150.0,0.000162,2]
[398430488,1765645831955,-150.0,0.000162,2]
[398430489,1765645831964,-204.06296581,0.00016237,2]
[398430490,1765645831973,-150.0,0.00016268,2]
[398430491,1765645831982,-876.21,0.00016276,2]
[398430492,1765645831991,-550.0,0.00016291,2]
[398430493,1765645832000,-300.0,0.00016292,2]
[398430494,1765645832009,-300.70127104,0.00016292,2]
[398430495,1765645832018,-1000.0,0.00016292,2]
[398430496,1765645832030,-1000.0,0.00016292,2]
[398430497,1765645832042,-797.7444262,0.00016292,2]
[398430498,1765645832055,-202.2555738,0.00016292,2]
[398430499,1765645832064,-1000.0,0.00016292,2]
[398430500,1765645832075,-1000.0,0.00016292,2]
[398430501,1765645832085,-1000.0,0.00016292,2]
[398430502,1765645832095,-1000.0,0.00016292,2]
[398430503,1765645832105,-1000.0,0.00016292,2]
[398430504,1765645832117,-1000.0,0.00016292,2]
[398430505,1765645832127,-1000.0,0.00016292,2]
[398430506,1765645832137,-1000.0,0.00016292,2]
[398430507,1765645832148,-622.24294831,0.00016292,2]
[398430508,1765645832158,-1000.0,0.00016292,2]
[398430509,1765645832168,-1000.0,0.00016292,2]
[398430510,1765645832178,-151.0,0.00016292,2]
[398430511,1765645832188,-800.91950008,0.00016292,2]
[398430512,1765645832198,-995.0,0.00016292,2]